fUSD/lending_fUSD_20251003
["ID","MTS","AMOUNT","RATE_DAILY","PERIOD"]
[388892586,1759478502446,-231.28369723,0.0001699,2]
[388892587,1759478502472,-500.0,0.0001699,2]
[388892588,1759478502496,-200.0,0.0001699,2]
[388892589,1759478502523,-500.0,0.0001699,2]
[388892590,1759478502547,-200.0,0.0001699,2]
[388892591,1759478502573,-500.0,0.0001699,2]
[388892592,1759478502601,-200.0,0.0001699,2]
[388892593,1759478502628,-500.0,0.0001699,2]
[388892594,1759478502652,-200.0,0.0001699,2]
[388892595,1759478502682,-500.0,0.0001699,2]
[388892596,1759478502707,-200.0,0.0001699,2]
[388892597,1759478502734,-500.0,0.0001699,2]
[388892598,1759478502758,-195.23799388,0.0001699,2]
[388892599,1759478502784,-500.0,0.0001699,2]
[388892600,1759478502810,-500.0,0.0001699,2]
[388892601,1759478502836,-500.0,0.0001699,2]
[388892602,1759478502862,-500.0,0.0001699,2]
[388892603,1759478502887,-500.0,0.0001699,2]
[388892604,1759478502913,-500.0,0.0001699,2]
[388892605,1759478502939,-500.0,0.0001699,2]
[388892606,1759478502965,-500.0,0.0001699,2]
[388892607,1759478502989,-500.0,0.0001699,2]
[388892608,1759478503014,-500.0,0.0001699,2]
[388892609,1759478503038,-500.0,0.0001699,2]
[388892610,1759478503064,-500.0,0.0001699,2]
[388892611,1759478503090,-547.79,0.0001699,2]
[388892612,1759478503115,-155.876,0.00016999,2]
[388892613,1759478503139,-150.0,0.00016999,2]
[388892614,1759478503165,-150.0,0.00016999,2]
[388892615,1759478503190,-150.79614748,0.00016999,2]
[388892616,1759478503219,-150.0,0.00016999,2]
[388892617,1759478503243,-250.86098459,0.00016999,2]
[388892618,1759478503269,-150.0,0.00016999,2]
[388892619,1759478503294,-150.0,0.00016999,2]
[388892620,1759478503318,-155.62314019,0.00016999,2]
[388892621,1759478503342,-152.29201644,0.00016999,2]
[388892622,1759478503366,-1516.0,0.00016999,2]
[388892623,1759478503390,-150.0,0.00016999,2]
[388892624,1759478503416,-1106.0,0.00016999,2]
[388892625,1759478503443,-150.0,0.00016999,2]
[388892626,1759478503467,-500.0,0.00016999,2]
[388892627,1759478503494,-150.0,0.00016999,2]
[388892628,1759478503519,-150.0,0.00016999,2]
[388892629,1759478503545,-150.0,0.00016999,2]
[388892630,1759478503571,-150.0,0.00016999,2]
[388892631,1759478503598,-500.0,0.00016999,2]
[388892632,1759478503623,-511.0,0.00017,2]
[388892633,1759478503650,-42737.36058276,0.00017,2]
[388892634,1759478507081,150.0,0.000155,2]
[388892637,1759478595238,2000.0,0.00026893,120]
[388892638,1759478595630,583.801842,0.00028493,120]
[388892642,1759478726310,151.46771716,0.00015534,2]
[388892643,1759478741368,152.62651636,0.00015534,2]
[388892907,1759478781039,1169.0,0.00030137,120]
[388894026,1759478880149,1000.0,0.00016438,2]
[388894029,1759478967209,-200.0,0.000167,6]
[388894103,1759479014719,-150.0,0.0001668,2]
[388894140,1759479031731,-596.60464793,0.00016755,2]
[388894166,1759479031933,-1903.39535207,0.00016755,2]
[388894168,1759479031943,-180.36643568,0.000168,2]
[388894170,1759479031955,-500.0,0.000168,6]
[388894172,1759479031965,-1214.66501,0.0001683,2]
[388894174,1759479031975,-500.0,0.00016877,2]
[388894176,1759479031986,-1200.0,0.00016898,2]
[388894178,1759479031996,-1200.0,0.00016899,2]
[388894180,1759479032006,-300.0,0.00016899,2]
[388894182,1759479032016,-700.0,0.000169,6]
[388894185,1759479032026,-2295.60542685,0.000169,2]
[388894187,1759479032036,-170.62523777,0.000169,2]
[388894189,1759479032045,-219.71790144,0.000169,2]
[388894190,1759479032055,-929.09224632,0.000169,2]
[388894191,1759479032065,-500.0,0.00016973,2]
[388894192,1759479032076,-500.0,0.00016973,2]
[388894194,1759479032086,-550.0,0.00016989,2]
[388894197,1759479032096,-322.6107,0.0001699,2]
[388894199,1759479032106,-7965.41053268,0.0001699,2]
[388894201,1759479032116,-231.28369723,0.0001699,2]
[388894203,1759479032125,-500.0,0.0001699,2]
[388894205,1759479032135,-500.0,0.0001699,2]
[388894207,1759479032144,-568.74577893,0.0001699,2]
[388894209,1759479032155,-500.0,0.0001699,2]
[388894211,1759479032164,-500.0,0.0001699,2]
[388894213,1759479032174,-500.0,0.0001699,2]
[388894215,1759479032184,-500.0,0.0001699,2]
[388894217,1759479032194,-500.0,0.0001699,2]
[388894218,1759479032204,-500.0,0.0001699,2]
[388894219,1759479032214,-500.0,0.0001699,2]
[388894220,1759479032223,-500.0,0.0001699,2]
[388894221,1759479032232,-500.0,0.0001699,2]
[388894222,1759479032241,-500.0,0.0001699,2]
[388894223,1759479032251,-500.0,0.0001699,2]
[388894224,1759479032261,-500.0,0.0001699,2]
[388894225,1759479032271,-500.0,0.0001699,2]
[388894226,1759479032280,-578.20924308,0.0001699,2]
[388894227,1759479032290,-500.0,0.0001699,2]
[388894228,1759479032300,-1000.0,0.00016997,2]
[388894229,1759479032309,-500.0,0.00016997,2]
[388894230,1759479032319,-500.0,0.00016997,2]
[388894231,1759479032328,-500.0,0.00016997,2]
[388894232,1759479032337,-630.64085319,0.00016997,2]
[388894233,1759479032347,-1115.1601601,0.00016997,2]
[388894234,1759479032356,-50777.985002,0.00016998,2]
[388894235,1759479032366,-533.96661839,0.00016999,2]
[388894236,1759479032375,-50098.5807737,0.00017,2]
[388894237,1759479032387,-44511.17230111,0.00017,2]
[388894238,1759479032399,-708.17011918,0.00017,2]
[388894239,1759479032422,-359.0004,0.00017,2]
[388894240,1759479032434,-2095.64616001,0.00017,2]
[388894275,1759479033185,150.0,0.000164,2]
[388894277,1759479037620,-15512.35878916,0.00017,2]
[388894284,1759479040055,-987.93906758,0.00017,2]
[388894285,1759479040079,-473.74253215,0.00017,2]
[388894286,1759479040092,-502.27801286,0.00017,2]
[388894296,1759479046580,-3970.51475694,0.00017,2]
[388894297,1759479046595,-450.0,0.00017,2]
[388894298,1759479046609,-1980.05225886,0.00017,2]
[388894299,1759479046623,-2556.4479,0.00017,2]
[388894300,1759479046665,-6010.86244653,0.00017,2]
[388894301,1759479046696,-918.0,0.00017,2]
[388894302,1759479046841,-901.2581735,0.00017,2]
[388894303,1759479047040,-307.95228,0.00017,2]
[388894304,1759479047076,-1750.0,0.00017,2]
[388894305,1759479047091,-36460.02308608,0.00017,2]
[388894306,1759479047143,-40444.14029576,0.00017,2]
[388894307,1759479047157,-1697.86466774,0.00017,2]
[388894613,1759479073096,184.74340049,0.00030137,120]
[388894614,1759479136592,500.0,0.0001658,2]
[388894616,1759479202286,1000.0,0.00030136,120]
[388894617,1759479203606,200.0,0.00016447,2]
[388894620,1759479220443,1000.0,0.00030136,120]
[388894644,1759479236932,4925.84,0.00016062,2]
[388894653,1759479243814,1000.0,0.00030136,120]
[388894654,1759479255941,1000.0,0.00030136,120]
[388894655,1759479257807,29404.0,0.00030137,120]
[388894656,1759479267292,1000.0,0.00030136,120]
[388894657,1759479313360,-1000.0,0.00021945,30]
[388894677,1759479348846,611.73,0.00016156,2]
[388894825,1759479434314,1951.3,0.00016062,2]
[388894885,1759479541651,477.72,0.00016062,2]
[388894899,1759479559138,150.0,0.000154,2]
[388894900,1759479559556,150.0,0.0001658,2]
[388894920,1759479592515,1360.93,0.0001621,2]
[388894965,1759479620474,200.0,0.00016178,2]
[388895026,1759479727777,-250.0,0.00016699,2]
[388895027,1759479737014,181.62622231,0.000166,2]
[388895033,1759479753110,1503.68,0.00016062,2]
[388895042,1759479784216,165.97,0.00016045,2]
[388895043,1759479800869,200.0,0.00015917,2]
[388895046,1759479857031,-153.0,0.00016615,2]
[388895059,1759479976680,2345.5510079,0.000301,120]
[388895062,1759480000283,3958.92,0.00016004,2]
[388895078,1759480037441,181.62622231,0.00016599,2]
[388895079,1759480039051,162.57,7.996e-05,2]
[388895080,1759480039219,162.57,8.885e-05,2]
[388895081,1759480039427,162.57,9.773e-05,2]
[388895082,1759480039830,162.57,0.00010662,2]
[388895083,1759480040116,162.57,0.0001155,2]
[388895084,1759480040674,162.57,0.00012439,2]
[388895085,1759480040782,162.57,0.00013327,2]
[388895086,1759480040924,162.57,0.00014216,2]
[388895087,1759480041085,162.57,0.00015104,2]
[388895088,1759480041271,162.57,0.00015993,2]
[388895228,1759480085313,150.0,0.000144,2]
[388895229,1759480085531,150.0,0.0001558,2]
[388895361,1759480232139,-300.0,0.00016689,2]
[388895362,1759480232149,-300.0,0.00016689,2]
[388895363,1759480232159,-1200.0,0.00016689,2]
[388895364,1759480232169,-3142.33009693,0.0001669,2]
[388895365,1759480232181,-4823.08043575,0.0001669,2]
[388895366,1759480232190,-599.60298507,0.0001669,2]
[388895367,1759480232199,-231.28369723,0.0001669,2]
[388895368,1759480232209,-550.0,0.00016699,2]
[388895369,1759480232219,-942.81062958,0.00016699,2]
[388895370,1759480232228,-195.0,0.00016699,2]
[388895371,1759480232238,-500.0,0.00016699,2]
[388895372,1759480232247,-150.0,0.000167,2]
[388895373,1759480232257,-163.4055921,0.000167,2]
[388895374,1759480232266,-8078.65301985,0.00016745,2]
[388895375,1759480232275,-246.76165535,0.00016754,2]
[388895376,1759480232284,-150.0,0.0001677,2]
[388895377,1759480232293,-1246.40101,0.0001683,2]
[388895378,1759480232303,-151.0,0.00016896,2]
[388895379,1759480232312,-500.0,0.00016897,2]
[388895380,1759480232321,-500.0,0.00016897,2]
[388895381,1759480232330,-244.53193848,0.00016897,2]
[388895382,1759480232343,-500.0,0.00016897,2]
[388895383,1759480232352,-500.0,0.00016897,2]
[388895384,1759480232362,-500.0,0.00016897,2]
[388895385,1759480232371,-500.0,0.00016897,2]
[388895386,1759480232381,-432.17561384,0.00016897,2]
[388895387,1759480232389,-500.0,0.00016897,2]
[388895388,1759480232399,-500.0,0.00016897,2]
[388895389,1759480232408,-500.0,0.00016897,2]
[388895390,1759480232418,-500.0,0.00016897,2]
[388895391,1759480232427,-521.12708362,0.00016897,2]
[388895392,1759480232436,-500.0,0.00016897,2]
[388895393,1759480232446,-500.0,0.00016897,2]
[388895394,1759480232455,-500.0,0.00016897,2]
[388895395,1759480232464,-848.5416,0.00016898,2]
[388895396,1759480232474,-2129.2012,0.00016898,2]
[388895397,1759480232483,-7001.3361,0.00016899,2]
[388895398,1759480232493,-159.86277053,0.000169,2]
[388895399,1759480232503,-2376.43782315,0.000169,2]
[388895400,1759480232512,-214.20762722,0.000169,2]
[388895401,1759480232522,-1246.40102,0.0001695,2]
[388895402,1759480232532,-500.0,0.00016973,2]
[388895403,1759480232541,-500.0,0.00016973,2]
[388895404,1759480232550,-260.92677151,0.00016973,2]
[388895405,1759480232561,-1000.0,0.00016976,2]
[388895406,1759480232570,-487.02,0.00016989,2]
[388895407,1759480232579,-720.535,0.00016989,2]
[388895408,1759480232588,-151.0,0.0001699,2]
[388895409,1759480232598,-151.0,0.0001699,2]
[388895410,1759480232607,-257.49475909,0.0001699,2]
[388895411,1759480232616,-322.6107,0.0001699,2]
[388895412,1759480232626,-623.58710448,0.0001699,2]
[388895413,1759480232638,-151.0,0.0001699,2]
[388895414,1759480232648,-152.99978199,0.0001699,2]
[388895415,1759480232658,-151.0,0.0001699,2]
[388895416,1759480232667,-151.0,0.0001699,2]
[388895417,1759480232676,-204.28528275,0.0001699,2]
[388895418,1759480232685,-151.0,0.0001699,2]
[388895419,1759480232694,-151.0,0.0001699,2]
[388895420,1759480232704,-174.61919142,0.0001699,2]
[388895421,1759480232714,-500.0,0.0001699,2]
[388895422,1759480232724,-500.0,0.0001699,2]
[388895423,1759480232734,-500.0,0.0001699,2]
[388895425,1759480232743,-500.0,0.0001699,2]
[388895426,1759480232752,-500.0,0.0001699,2]
[388895427,1759480232761,-500.0,0.0001699,2]
[388895428,1759480232771,-500.0,0.0001699,2]
[388895429,1759480232779,-500.0,0.0001699,2]
[388895430,1759480232789,-500.0,0.0001699,2]
[388895431,1759480232798,-500.0,0.0001699,2]
[388895432,1759480232808,-500.0,0.0001699,2]
[388895433,1759480232817,-500.0,0.0001699,2]
[388895434,1759480232827,-151.0,0.0001699,2]
[388895435,1759480232836,-500.0,0.0001699,2]
[388895436,1759480232846,-500.0,0.0001699,2]
[388895437,1759480232856,-500.0,0.0001699,2]
[388895438,1759480232866,-500.0,0.0001699,2]
[388895439,1759480232875,-500.0,0.0001699,2]
[388895440,1759480232887,-500.0,0.0001699,2]
[388895441,1759480232898,-500.0,0.0001699,2]
[388895442,1759480232907,-500.0,0.0001699,2]
[388895443,1759480232916,-500.0,0.0001699,2]
[388895444,1759480232927,-500.0,0.0001699,2]
[388895445,1759480232936,-500.0,0.0001699,2]
[388895446,1759480232946,-500.0,0.0001699,2]
[388895447,1759480232956,-500.0,0.0001699,2]
[388895448,1759480232966,-500.0,0.0001699,2]
[388895449,1759480232975,-500.0,0.0001699,2]
[388895450,1759480232984,-500.0,0.0001699,2]
[388895451,1759480232994,-500.0,0.0001699,2]
[388895452,1759480233003,-500.0,0.0001699,2]
[388895453,1759480233012,-500.0,0.0001699,2]
[388895454,1759480233021,-500.0,0.0001699,2]
[388895455,1759480233031,-487.02,0.0001699,2]
[388895456,1759480233041,-487.02,0.0001699,2]
[388895457,1759480233051,-506.28,0.0001699,2]
[388895458,1759480233061,-487.02,0.0001699,2]
[388895459,1759480233071,-487.02,0.0001699,2]
[388895460,1759480233080,-1531.04343816,0.00016998,5]
[388895461,1759480233090,-77232.70992612,0.00016998,2]
[388895462,1759480233105,-213.20977556,0.00016998,2]
[388895463,1759480233115,-281.90905154,0.00016998,2]
[388895464,1759480233124,-500.0,0.00016998,2]
[388895465,1759480233134,-362.67099839,0.00016998,2]
[388895466,1759480233144,-2144.9137962,0.00016999,2]
[388895467,1759480233154,-53458.99177404,0.00016999,2]
[388895468,1759480234039,-500.0,0.00016897,2]
[388895469,1759480234049,-352.37951386,0.00016999,2]
[388895470,1759480234067,-218.0673466,0.00016999,5]
[388895471,1759480234077,-126.54734434,0.00016999,2]
[388895472,1759480234088,-279.73046111,0.00016999,2]
[388895473,1759480234099,-932.3612464,0.00016999,2]
[388895474,1759480234110,-2114.55287245,0.00016999,2]
[388895475,1759480234119,-404.06501652,0.00016999,2]
[388895476,1759480234129,-150.0,0.00016999,2]
[388895477,1759480234138,-150.0,0.00016999,2]
[388895478,1759480234147,-500.0,0.00016999,2]
[388895479,1759480234157,-500.0,0.00016999,2]
[388895480,1759480234167,-500.0,0.00016999,2]
[388895481,1759480234176,-150.0,0.00016999,2]
[388895482,1759480234185,-500.0,0.00016999,2]
[388895483,1759480234195,-150.0,0.00016999,2]
[388895484,1759480234205,-1620.0,0.00016999,2]
[388895485,1759480234215,-150.0,0.00016999,2]
[388895486,1759480234224,-1096.0,0.00016999,2]
[388895487,1759480234234,-151.0,0.00016999,2]
[388895488,1759480234244,-151.0,0.00016999,2]
[388895489,1759480234254,-500.0,0.00016999,2]
[388895490,1759480234263,-624.56852951,0.00016999,2]
[388895491,1759480234274,-150.0,0.00016999,2]
[388895492,1759480234284,-151.0,0.00016999,2]
[388895493,1759480234293,-151.0,0.00016999,2]
[388895494,1759480234302,-150.0,0.00016999,2]
[388895495,1759480234312,-150.0,0.00016999,2]
[388895496,1759480234321,-500.0,0.00016999,2]
[388895497,1759480234330,-150.0,0.00016999,2]
[388895498,1759480234340,-151.0,0.00016999,2]
[388895499,1759480234354,-200.0,0.00016999,2]
[388895500,1759480234363,-500.0,0.00016999,2]
[388895501,1759480234372,-151.0,0.00016999,2]
[388895502,1759480234382,-151.0,0.00016999,2]
[388895503,1759480234391,-151.0,0.00016999,2]
[388895504,1759480234400,-151.0,0.00016999,2]
[388895505,1759480234410,-151.0,0.00016999,2]
[388895506,1759480234421,-151.0,0.00016999,2]
[388895507,1759480234432,-221.753242,0.00016999,2]
[388895508,1759480234443,-151.0,0.00016999,2]
[388895509,1759480234454,-151.0,0.00016999,2]
[388895510,1759480234464,-221.753242,0.00016999,2]
[388895511,1759480234473,-151.933238,0.00016999,2]
[388895512,1759480234482,-221.753242,0.00016999,2]
[388895513,1759480234493,-151.0,0.00016999,2]
[388895514,1759480234504,-221.753242,0.00016999,2]
[388895515,1759480234515,-321.926393,0.00016999,2]
[388895516,1759480234525,-151.0,0.00016999,2]
[388895517,1759480234536,-151.0,0.00016999,2]
[388895518,1759480234545,-321.926393,0.00016999,2]
[388895519,1759480234555,-151.0,0.00016999,2]
[388895520,1759480234564,-321.926393,0.00016999,2]
[388895521,1759480234573,-321.926393,0.00016999,2]
[388895522,1759480234583,-151.0,0.00016999,2]
[388895523,1759480234591,-151.0,0.00016999,2]
[388895524,1759480234602,-151.0,0.00016999,2]
[388895525,1759480234611,-557.578525,0.00016999,2]
[388895526,1759480234620,-297.210521,0.00016999,2]
[388895527,1759480234630,-557.578525,0.00016999,2]
[388895528,1759480234639,-297.210521,0.00016999,2]
[388895529,1759480234649,-557.578525,0.00016999,2]
[388895530,1759480234658,-297.210521,0.00016999,2]
[388895531,1759480234667,-557.578525,0.00016999,2]
[388895532,1759480234677,-297.210521,0.00016999,2]
[388895533,1759480234687,-151.0,0.00016999,2]
[388895534,1759480234697,-151.0,0.00016999,2]
[388895535,1759480234706,-151.0,0.00016999,2]
[388895536,1759480234716,-151.0,0.00016999,2]
[388895537,1759480234726,-151.0,0.00016999,2]
[388895538,1759480234736,-151.0,0.00016999,2]
[388895539,1759480235069,-92.40000297,0.00016999,2]
[388895544,1759480236748,-887.77907655,0.00016923,2]
[388895545,1759480236758,-58.59999703,0.00016999,2]
[388895546,1759480236767,-151.0,0.00016999,2]
[388895547,1759480236776,-151.0,0.00016999,2]
[388895548,1759480236785,-236.839246,0.00016999,2]
[388895549,1759480236795,-236.839246,0.00016999,2]
[388895550,1759480236804,-151.0,0.00016999,2]
[388895551,1759480236814,-236.839246,0.00016999,2]
[388895552,1759480236823,-151.0,0.00016999,2]
[388895553,1759480236832,-171.016617,0.00016999,2]
[388895554,1759480236841,-236.839246,0.00016999,2]
[388895555,1759480236851,-171.016617,0.00016999,2]
[388895556,1759480236860,-151.0,0.00016999,2]
[388895557,1759480236869,-171.016617,0.00016999,2]
[388895558,1759480236878,-151.0,0.00016999,2]
[388895559,1759480236887,-171.016617,0.00016999,2]
[388895560,1759480236898,-151.0,0.00016999,2]
[388895561,1759480236908,-151.0,0.00016999,2]
[388895562,1759480236918,-151.0,0.00016999,2]
[388895563,1759480236929,-151.0,0.00016999,2]
[388895564,1759480236938,-151.0,0.00016999,2]
[388895565,1759480236948,-254.560334,0.00016999,2]
[388895566,1759480236958,-152.575585,0.00016999,2]
[388895567,1759480236967,-406.384099,0.00016999,2]
[388895568,1759480236977,-4354.881357,0.00016999,2]
[388895569,1759480236986,-406.384099,0.00016999,2]
[388895570,1759480236996,-4354.881357,0.00016999,2]
[388895571,1759480237007,-151.0,0.00016999,2]
[388895572,1759480237016,-151.0,0.00016999,2]
[388895573,1759480237026,-151.0,0.00016999,2]
[388895574,1759480237035,-406.384099,0.00016999,2]
[388895575,1759480237045,-251.51581123,0.00016999,2]
[388895576,1759480237054,-1292.64781915,0.00016999,2]
[388895577,1759480237066,-1620.50761529,0.00016999,2]
[388895578,1759480237078,-469.299143,0.00016999,2]
[388895579,1759480237297,-358.8585,0.00016999,2]
[388895613,1759480238811,-500.0,0.00016897,2]
[388895614,1759480238823,-500.0,0.00016897,2]
[388895615,1759480238832,-613.56827956,0.00016999,2]
[388895616,1759480238844,-406.384099,0.00016999,2]
[388895617,1759480238855,-150.0,0.00016999,2]
[388895618,1759480238867,-330.04762144,0.00016999,2]
[388895619,1759480238881,-1384.39075627,0.00016999,2]
[388895620,1759480238908,-481.00158458,0.00016999,2]
[388895621,1759480239287,-2159.44139471,0.00016999,2]
[388895622,1759480239298,-264.51174908,0.00016999,2]
[388895623,1759480239309,-150.0,0.00016999,2]
[388895624,1759480239319,-151.0,0.00016999,2]
[388895625,1759480239329,-2037.03627744,0.00017,2]
[388895626,1759480239343,-3009.65999864,0.00017,2]
[388895627,1759480239365,-699.65993792,0.00017,2]
[388895631,1759480240198,-939.150054,0.00016999,2]
[388895632,1759480240209,-974.441626,0.00017,2]
[388895633,1759480240226,-1010.4978635,0.00017,2]
[388895634,1759480240237,-48329.03463178,0.00017,2]
[388895635,1759480240249,-1167.3436905,0.00017,2]
[388895646,1759480242847,-299.5,0.00016999,2]
[388895647,1759480242892,-639.650054,0.00016999,2]
[388895648,1759480242903,-814.93379098,0.00016999,2]
[388895649,1759480242916,-124.21626302,0.00016999,2]
[388895650,1759480242926,-1176.737957,0.00017,2]
[388895651,1759480242998,-8153.55993236,0.00017,2]
[388895652,1759480243109,-350.06616536,0.00017,2]
[388895653,1759480243122,-513.09853069,0.00017,2]
[388895654,1759480243135,-395.91643799,0.00017,2]
[388895655,1759480243198,-35921.24411703,0.00017,2]
[388895656,1759480243209,-23864.60588298,0.00017,2]
[388895659,1759480243258,-49268.42672378,0.00017,2]
[388895660,1759480243267,-10535.48527622,0.00017,2]
[388895670,1759480245783,-153.797864,0.00016913,2]
[388895671,1759480245793,-939.150054,0.00016999,2]
[388895672,1759480245802,-297.92888,0.00016999,2]
[388895673,1759480245812,-3396.67447124,0.00017,2]
[388895674,1759480245823,-2330.44411578,0.00017,2]
[388895676,1759480245908,-1193.8,0.00017,2]
[388895677,1759480246104,-297.92888,0.00016999,2]
[388895678,1759480246114,-118.67120666,0.00017,2]
[388895679,1759480246159,-1653.64125289,0.00017,2]
[388895680,1759480246214,-2071.55003114,0.00017,2]
[388895681,1759480246226,-6374.29748242,0.00017,2]
[388895695,1759480365838,-385.76916792,0.00016615,2]
[388895701,1759480389735,500.0,0.00027397,120]
[388895702,1759480390025,558.0,0.00027671,120]
[388895703,1759480394462,-300.0,0.00016614,2]
[388895704,1759480394485,-85.76916792,0.00016614,2]
[388895707,1759480439316,396.44552052,0.00030136,120]
[388895708,1759480444636,390.61,0.00016158,2]
[388895926,1759480535270,1000.0,0.00030136,120]
[388895930,1759480549248,600.0,0.00030136,120]
[388895945,1759480610669,150.0,0.000153,2]
[388895946,1759480611120,150.0,0.0001648,2]
[388895948,1759480643349,170.93461339,0.00016514,2]
[388895954,1759480718283,150.0,0.00016189,2]
[388895958,1759480733918,1129.07,0.00016189,2]
[388895963,1759480752321,1029.28,0.00030136,120]
[388895967,1759480764775,1000.0,0.00030136,120]
[388895969,1759480777600,1000.0,0.00030136,120]
[388895972,1759480786636,1000.0,0.00030136,120]
[388895977,1759480802407,1000.0,0.00030136,120]
[388896031,1759480875003,-215.0,0.00016614,2]
[388896032,1759480875026,-16.27280037,0.00016614,2]
[388896051,1759480976215,889.4,0.00016438,2]
[388896085,1759481077589,1582.67,0.00016129,2]
[388896106,1759481135756,150.0,0.000153,2]
[388896107,1759481136253,150.0,0.0001648,2]
[388896166,1759481257979,1000.0,0.00030136,120]
[388896179,1759481280986,1000.0,0.00030136,120]
[388896246,1759481404152,1478.76253846,0.00030136,120]
[388896352,1759481432906,-349.77342558,0.00016604,2]
[388896355,1759481432917,-195.0,0.00016604,2]
[388896357,1759481432928,-150.0,0.00016604,2]
[388896359,1759481432938,-1392.42682638,0.00016605,2]
[388896360,1759481432948,-195.0,0.00016606,2]
[388896362,1759481432958,-150.0,0.00016607,2]
[388896365,1759481432967,-296.0,0.00016613,2]
[388896366,1759481432975,-1200.0,0.00016613,2]
[388896368,1759481432982,-300.0,0.00016613,2]
[388896370,1759481432990,-2000.0,0.00016614,2]
[388896372,1759481432998,-2000.0,0.00016614,2]
[388896374,1759481433006,-2000.0,0.00016614,2]
[388896376,1759481433014,-2000.0,0.00016614,2]
[388896378,1759481433023,-1082.534,0.00016614,2]
[388896380,1759481433030,-1000.0,0.00016614,2]
[388896382,1759481433039,-1000.0,0.00016614,2]
[388896384,1759481433047,-622.45,0.00016614,2]
[388896386,1759481433056,-1000.0,0.00016614,2]
[388896388,1759481433064,-1000.0,0.00016614,2]
[388896390,1759481433072,-458.124,0.00016614,2]
[388896392,1759481433079,-271.402,0.00016614,2]
[388896394,1759481433087,-335.68078707,0.00016744,2]
[388896395,1759481433096,-159.13062376,0.00016744,2]
[388896397,1759481433105,-500.0,0.00016744,2]
[388896399,1759481433113,-37189.0,0.00016745,2]
[388896401,1759481433122,-436.77963,0.0001683,2]
[388896403,1759481433133,-278.0615,0.0001689,2]
[388896405,1759481433143,-232.9005,0.0001689,2]
[388896407,1759481433152,-2129.2012,0.0001689,2]
[388896409,1759481433161,-8863.02186079,0.00016898,2]
[388896411,1759481433170,-163.48185431,0.00016898,2]
[388896413,1759481433179,-33346.3332,0.00016899,2]
[388896415,1759481433189,-1000.0,0.00016899,2]
[388896418,1759481433199,-576.428,0.00016899,2]
[388896419,1759481433208,-192.78686448,0.00016899,2]
[388896422,1759481433218,-2500.0,0.000169,2]
[388896423,1759481433228,-743.27379708,0.000169,2]
[388896426,1759481433238,-436.77964,0.0001695,2]
[388896427,1759481433248,-500.0,0.00016973,2]
[388896429,1759481433259,-500.0,0.00016973,2]
[388896431,1759481433269,-500.0,0.00016973,2]
[388896433,1759481433281,-4567.64469177,0.0001698,2]
[388896435,1759481433290,-231.28369723,0.0001698,2]
[388896437,1759481433300,-322.6107,0.0001699,2]
[388896439,1759481433309,-500.0,0.0001699,2]
[388896441,1759481433317,-500.0,0.0001699,2]
[388896443,1759481433327,-500.0,0.0001699,2]
[388896445,1759481433336,-500.0,0.0001699,2]
[388896447,1759481433347,-155.20713349,0.0001699,2]
[388896449,1759481433358,-500.0,0.0001699,2]